[Event "GrandPrix_29.05"]
[Site "Chess.com"]
[Date "2020.05.29"]
[Round "6"]
[White "kpio91"]
[Black "moro182"]
[Result "1/2-1/2"]
[WhiteElo "2687"]
[BlackElo "2590"]
[TimeControl "600+2"]
[EndTime "12:04:24 PDT"]
[Termination "Game drawn - insufficient material"]

1. e4 {[%clk 0:10:01.9]} 1... e5 {[%clk 0:09:59.5]} 2. Bc4 {[%clk 0:10:00]} 2...
Nc6 {[%clk 0:09:58.1]} 3. d3 {[%clk 0:09:57.8]} 3... Bc5 {[%clk 0:09:37.8]} 4.
Nc3 {[%clk 0:09:55.7]} 4... Nf6 {[%clk 0:09:35.8]} 5. h3 {[%clk 0:09:49]} 5...
d6 {[%clk 0:09:26.7]} 6. Nge2 {[%clk 0:09:48.7]} 6... O-O {[%clk 0:09:19.6]} 7.
O-O {[%clk 0:09:42.1]} 7... Na5 {[%clk 0:09:14.4]} 8. Bb3 {[%clk 0:09:42.5]}
8... Nxb3 {[%clk 0:09:15.2]} 9. axb3 {[%clk 0:09:43.7]} 9... d5 {[%clk
0:09:10.4]} 10. Bg5 {[%clk 0:09:43.7]} 10... dxe4 {[%clk 0:09:07.7]} 11. Bxf6
{[%clk 0:09:12.6]} 11... Qxf6 {[%clk 0:09:08]} 12. Nxe4 {[%clk 0:09:13.6]} 12...
Qe7 {[%clk 0:08:56.4]} 13. Nxc5 {[%clk 0:09:13.8]} 13... Qxc5 {[%clk 0:08:58.3]}
14. Qd2 {[%clk 0:09:15.2]} 14... Be6 {[%clk 0:08:50.2]} 15. Ra5 {[%clk
0:09:08.7]} 15... Qd6 {[%clk 0:08:46]} 16. Qe3 {[%clk 0:08:57.8]} 16... Bd5
{[%clk 0:07:28.1]} 17. Nc3 {[%clk 0:08:33.8]} 17... c6 {[%clk 0:06:05.8]} 18.
Rxa7 {[%clk 0:08:01.5]} 18... Rxa7 {[%clk 0:06:05.7]} 19. Qxa7 {[%clk
0:08:01.8]} 19... b5 {[%clk 0:06:07.6]} 20. Qb6 {[%clk 0:06:58.9]} 20... f5
{[%clk 0:05:43.7]} 21. Re1 {[%clk 0:06:52.1]} 21... h6 {[%clk 0:05:35.8]} 22.
Nxd5 {[%clk 0:05:23.2]} 22... Qxd5 {[%clk 0:05:37.7]} 23. b4 {[%clk 0:05:22.6]}
23... Re8 {[%clk 0:05:09.8]} 24. b3 {[%clk 0:05:00.3]} 24... Re6 {[%clk
0:04:54.5]} 25. Re3 {[%clk 0:04:32.9]} 25... Qd6 {[%clk 0:04:15.9]} 26. Qc5
{[%clk 0:03:46.7]} 26... Qxc5 {[%clk 0:04:08.8]} 27. bxc5 {[%clk 0:03:47.8]}
27... Kf7 {[%clk 0:04:10.7]} 28. b4 {[%clk 0:03:46.3]} 28... Re7 {[%clk
0:04:04.8]} 29. Re1 {[%clk 0:03:47.1]} 29... Kf6 {[%clk 0:02:50.2]} 30. Ra1
{[%clk 0:03:44.8]} 30... e4 {[%clk 0:02:50.6]} 31. Ra6 {[%clk 0:03:00.6]} 31...
Rc7 {[%clk 0:02:23.2]} 32. Ra8 {[%clk 0:02:17.3]} 32... exd3 {[%clk 0:02:05.8]}
33. cxd3 {[%clk 0:02:16.1]} 33... Ke5 {[%clk 0:02:05]} 34. Rd8 {[%clk
0:02:14.1]} 34... Ra7 {[%clk 0:02:04.9]} 35. f3 {[%clk 0:01:10.1]} 35... Ra4
{[%clk 0:01:44.7]} 36. Rd6 {[%clk 0:00:26]} 36... Rxb4 {[%clk 0:01:42.9]} 37.
Rxc6 {[%clk 0:00:25.7]} 37... Kd4 {[%clk 0:00:38.2]} 38. Rc8 {[%clk 0:00:16.6]}
38... Kxd3 {[%clk 0:00:32.1]} 39. c6 {[%clk 0:00:17.3]} 39... Rc4 {[%clk
0:00:26.9]} 40. c7 {[%clk 0:00:11]} 40... Kc3 {[%clk 0:00:23.8]} 41. Rb8 {[%clk
0:00:11.2]} 41... Rxc7 {[%clk 0:00:21.8]} 42. Rxb5 {[%clk 0:00:12.8]} 42... Rf7
{[%clk 0:00:13.2]} 43. f4 {[%clk 0:00:07.2]} 43... Kd4 {[%clk 0:00:12]} 44. Re5
{[%clk 0:00:07.9]} 44... Rf6 {[%clk 0:00:05.1]} 45. Kf2 {[%clk 0:00:07.9]} 45...
g6 {[%clk 0:00:05.8]} 46. Kf3 {[%clk 0:00:08.6]} 46... Ra6 {[%clk 0:00:06.7]}
47. Re8 {[%clk 0:00:08.3]} 47... Ra3+ {[%clk 0:00:06.8]} 48. Kf2 {[%clk
0:00:09.6]} 48... Ra2+ {[%clk 0:00:08.2]} 49. Kg3 {[%clk 0:00:11.1]} 49... Ra3+
{[%clk 0:00:09.2]} 50. Kh4 {[%clk 0:00:12.4]} 50... Ra2 {[%clk 0:00:08]} 51. g3
{[%clk 0:00:11]} 51... Ra6 {[%clk 0:00:08.1]} 52. Rh8 {[%clk 0:00:09.6]} 52...
Ke4 {[%clk 0:00:06.6]} 53. Rxh6 {[%clk 0:00:07.1]} 53... Kf3 {[%clk 0:00:07.5]}
54. Rh8 {[%clk 0:00:05.2]} 54... Ra7 {[%clk 0:00:08.4]} 55. Rb8 {[%clk
0:00:04.1]} 55... Ra3 {[%clk 0:00:04.9]} 56. Rb6 {[%clk 0:00:02.7]} 56... Ra8
{[%clk 0:00:04.8]} 57. Rxg6 {[%clk 0:00:03.4]} 57... Rh8+ {[%clk 0:00:05.2]} 58.
Kg5 {[%clk 0:00:04.7]} 58... Kxg3 {[%clk 0:00:06.5]} 59. Kxf5+ {[%clk 0:00:06]}
59... Kxh3 {[%clk 0:00:08.2]} 60. Kf6 {[%clk 0:00:06.7]} 60... Ra8 {[%clk
0:00:08.1]} 61. f5 {[%clk 0:00:06.7]} 61... Kh4 {[%clk 0:00:09.6]} 62. Kg7
{[%clk 0:00:06]} 62... Ra7+ {[%clk 0:00:09.7]} 63. Kh6 {[%clk 0:00:05.8]} 63...
Rb7 {[%clk 0:00:06]} 64. f6 {[%clk 0:00:05.9]} 64... Rf7 {[%clk 0:00:06.9]} 65.
Rg7 {[%clk 0:00:04.6]} 65... Rxf6+ {[%clk 0:00:07.8]} 66. Rg6 {[%clk 0:00:04.9]}
66... Rxg6+ {[%clk 0:00:08.1]} 67. Kxg6 {[%clk 0:00:05.6]} 1/2-1/2

[Event "GrandPrix_29.05"]
[Site "Chess.com"]
[Date "2020.05.29"]
[Round "6"]
[White "ValeriyGrinev"]
[Black "abraham1982"]
[Result "1/2-1/2"]
[WhiteElo "2077"]
[BlackElo "2192"]
[TimeControl "600+2"]
[EndTime "12:04:27 PDT"]
[Termination "Game drawn by repetition"]

1. c4 {[%clk 0:10:01.9]} 1... c5 {[%clk 0:09:41.5]} 2. g3 {[%clk 0:10:00.9]}
2... Nc6 {[%clk 0:09:37.6]} 3. Bg2 {[%clk 0:10:01.7]} 3... g6 {[%clk 0:09:30.4]}
4. Nc3 {[%clk 0:10:01.3]} 4... Bg7 {[%clk 0:09:30.7]} 5. a3 {[%clk 0:10:02]}
5... a5 {[%clk 0:09:28.8]} 6. d3 {[%clk 0:09:59]} 6... e6 {[%clk 0:09:28.5]} 7.
h4 {[%clk 0:09:55.6]} 7... h6 {[%clk 0:09:25.7]} 8. Nh3 {[%clk 0:09:53.2]} 8...
Nge7 {[%clk 0:09:24.8]} 9. Nf4 {[%clk 0:09:53.2]} 9... O-O {[%clk 0:09:22.8]}
10. Rb1 {[%clk 0:09:14.7]} 10... d6 {[%clk 0:09:08.2]} 11. O-O {[%clk
0:09:06.4]} 11... Bd7 {[%clk 0:08:52.7]} 12. Bd2 {[%clk 0:08:51.6]} 12... f5
{[%clk 0:08:44.4]} 13. Nb5 {[%clk 0:08:41.2]} 13... Bc8 {[%clk 0:08:20.6]} 14.
Bc3 {[%clk 0:08:21.5]} 14... e5 {[%clk 0:08:16.9]} 15. Nd5 {[%clk 0:08:19.4]}
15... Nxd5 {[%clk 0:08:16.6]} 16. Bxd5+ {[%clk 0:08:19.7]} 16... Kh7 {[%clk
0:08:17.4]} 17. e3 {[%clk 0:06:33.7]} 17... Ne7 {[%clk 0:08:13.2]} 18. Bg2
{[%clk 0:06:26.4]} 18... d5 {[%clk 0:08:08.6]} 19. b4 {[%clk 0:06:03.4]} 19...
d4 {[%clk 0:07:56.9]} 20. exd4 {[%clk 0:06:02.4]} 20... axb4 {[%clk 0:07:43.3]}
21. axb4 {[%clk 0:06:00.7]} 21... cxd4 {[%clk 0:07:42.8]} 22. Ra1 {[%clk
0:05:49.2]} 22... Bd7 {[%clk 0:07:35.5]} 23. Bb2 {[%clk 0:05:26.1]} 23... Qb6
{[%clk 0:07:28.7]} 24. Re1 {[%clk 0:04:52.9]} 24... Rxa1 {[%clk 0:07:04.1]} 25.
Qxa1 {[%clk 0:04:38.3]} 25... Bxb5 {[%clk 0:06:51.8]} 26. cxb5 {[%clk
0:04:37.7]} 26... f4 {[%clk 0:03:57.9]} 27. Bxd4 {[%clk 0:04:09.5]} 27... Qxb5
{[%clk 0:02:21.4]} 28. Bxe5 {[%clk 0:03:06.6]} 28... fxg3 {[%clk 0:02:10.6]} 29.
fxg3 {[%clk 0:02:53.3]} 29... Rf7 {[%clk 0:02:04.8]} 30. Qa2 {[%clk 0:02:07.7]}
30... Qxb4 {[%clk 0:01:38.6]} 31. Rb1 {[%clk 0:01:13.5]} 31... Qxb1+ {[%clk
0:01:03.5]} 32. Qxb1 {[%clk 0:01:15.4]} 32... Bxe5 {[%clk 0:01:02.6]} 33. h5
{[%clk 0:01:12.2]} 33... Bxg3 {[%clk 0:01:01.8]} 34. Qxb7 {[%clk 0:01:01.4]}
34... Bf2+ {[%clk 0:00:59.9]} 35. Kh2 {[%clk 0:01:00.3]} 35... gxh5 {[%clk
0:00:59.1]} 36. Bd5 {[%clk 0:00:57.5]} 36... Rg7 {[%clk 0:00:52.6]} 37. Be4+
{[%clk 0:00:59]} 37... Kh8 {[%clk 0:00:51.3]} 38. Qb8+ {[%clk 0:00:48.5]} 38...
Ng8 {[%clk 0:00:49.5]} 39. Qf8 {[%clk 0:00:42.3]} 39... Bd4 {[%clk 0:00:45.6]}
40. Qf5 {[%clk 0:00:38.4]} 40... h4 {[%clk 0:00:42.4]} 41. Kh3 {[%clk
0:00:38.2]} 41... Bf6 {[%clk 0:00:30.3]} 42. Qf2 {[%clk 0:00:38.6]} 42... Rg3+
{[%clk 0:00:29.3]} 43. Kh2 {[%clk 0:00:39.8]} 43... Be5 {[%clk 0:00:29.9]} 44.
Kh1 {[%clk 0:00:41.4]} 44... Nf6 {[%clk 0:00:28.7]} 45. Qf5 {[%clk 0:00:41.2]}
45... Rg5 {[%clk 0:00:27.8]} 46. Qc8+ {[%clk 0:00:41.6]} 46... Rg8 {[%clk
0:00:26]} 47. Qe6 {[%clk 0:00:41.1]} 47... Rg5 {[%clk 0:00:22.9]} 48. Bf5 {[%clk
0:00:41.1]} 48... Bd4 {[%clk 0:00:19.4]} 49. Qd6 {[%clk 0:00:36]} 49... Rxf5
{[%clk 0:00:18.7]} 50. Qxd4 {[%clk 0:00:35.5]} 50... Kg7 {[%clk 0:00:18.6]} 51.
Kg2 {[%clk 0:00:34.8]} 51... Rd5 {[%clk 0:00:16.6]} 52. Qc3 {[%clk 0:00:30.7]}
52... h3+ {[%clk 0:00:14.3]} 53. Kxh3 {[%clk 0:00:30.7]} 53... h5 {[%clk
0:00:15.7]} 54. d4 {[%clk 0:00:29.7]} 54... Kg6 {[%clk 0:00:16.5]} 55. Qg3+
{[%clk 0:00:30.8]} 55... Kf5 {[%clk 0:00:16.5]} 56. Qf3+ {[%clk 0:00:31.3]}
56... Kg6 {[%clk 0:00:16.8]} 57. Qd3+ {[%clk 0:00:31.6]} 57... Kg5 {[%clk
0:00:16.2]} 58. Kg3 {[%clk 0:00:32.4]} 58... Rf5 {[%clk 0:00:15.5]} 59. Qe3+
{[%clk 0:00:32.4]} 59... Kg6 {[%clk 0:00:16.1]} 60. Qe7 {[%clk 0:00:32.6]} 60...
Rd5 {[%clk 0:00:14.7]} 61. Qa7 {[%clk 0:00:33.4]} 61... Rg5+ {[%clk 0:00:13.7]}
62. Kf4 {[%clk 0:00:33.6]} 62... h4 {[%clk 0:00:12.6]} 63. Qa6 {[%clk
0:00:25.5]} 63... Rf5+ {[%clk 0:00:12.2]} 64. Ke3 {[%clk 0:00:24.5]} 64... h3
{[%clk 0:00:12.4]} 65. Qe2 {[%clk 0:00:25]} 65... h2 {[%clk 0:00:12.7]} 66. Qg2+
{[%clk 0:00:22.6]} 66... Rg5 {[%clk 0:00:12.5]} 67. Qc2+ {[%clk 0:00:23.7]}
67... Kg7 {[%clk 0:00:11.1]} 68. Qc7+ {[%clk 0:00:23.2]} 68... Kg6 {[%clk
0:00:10.9]} 69. Qc2+ {[%clk 0:00:23.7]} 69... Rf5 {[%clk 0:00:10.4]} 70. Qg2+
{[%clk 0:00:23.8]} 70... Rg5 {[%clk 0:00:10.7]} 71. Qc2+ {[%clk 0:00:24.3]}
1/2-1/2

[Event "GrandPrix_29.05"]
[Site "Chess.com"]
[Date "2020.05.29"]
[Round "6"]
[White "2346PL"]
[Black "PeshkaTheGreat"]
[Result "1-0"]
[WhiteElo "2113"]
[BlackElo "2160"]
[TimeControl "600+2"]
[EndTime "12:04:34 PDT"]
[Termination "2346PL won by resignation"]

1. d4 {[%clk 0:10:01.9]} 1... d5 {[%clk 0:10:00]} 2. Nf3 {[%clk 0:10:02.1]} 2...
c6 {[%clk 0:09:57.3]} 3. e3 {[%clk 0:09:53.2]} 3... Bg4 {[%clk 0:09:57.2]} 4. h3
{[%clk 0:09:52.3]} 4... Bh5 {[%clk 0:09:56.8]} 5. Bd3 {[%clk 0:09:51.8]} 5... e6
{[%clk 0:09:57.2]} 6. O-O {[%clk 0:09:50.9]} 6... f5 {[%clk 0:09:58]} 7. b3
{[%clk 0:09:43.5]} 7... Nd7 {[%clk 0:09:58.1]} 8. Ba3 {[%clk 0:09:41.3]} 8...
Bxa3 {[%clk 0:09:38.6]} 9. Nxa3 {[%clk 0:09:42]} 9... g5 {[%clk 0:09:38.9]} 10.
Be2 {[%clk 0:09:36.7]} 10... g4 {[%clk 0:09:33.5]} 11. Nh2 {[%clk 0:09:21]}
11... Qe7 {[%clk 0:08:59.5]} 12. Nb1 {[%clk 0:09:09.3]} 12... Ngf6 {[%clk
0:08:55.1]} 13. hxg4 {[%clk 0:09:09.6]} 13... fxg4 {[%clk 0:08:55]} 14. Nxg4
{[%clk 0:09:10.6]} 14... Bxg4 {[%clk 0:08:52.8]} 15. Bxg4 {[%clk 0:09:11.7]}
15... O-O-O {[%clk 0:08:53.1]} 16. Nd2 {[%clk 0:08:42.1]} 16... Rdg8 {[%clk
0:08:50.4]} 17. Bh3 {[%clk 0:08:41.5]} 17... Kb8 {[%clk 0:08:49]} 18. c4 {[%clk
0:08:36.4]} 18... e5 {[%clk 0:08:44.8]} 19. cxd5 {[%clk 0:08:29.6]} 19... cxd5
{[%clk 0:08:37.8]} 20. dxe5 {[%clk 0:07:03.1]} 20... Nxe5 {[%clk 0:08:35.9]} 21.
Nf3 {[%clk 0:07:04.1]} 21... Neg4 {[%clk 0:08:23.8]} 22. Qd4 {[%clk 0:06:57.4]}
22... Ka8 {[%clk 0:06:48.1]} 23. Rac1 {[%clk 0:06:55.5]} 23... Qf7 {[%clk
0:06:05.9]} 24. Ne5 {[%clk 0:06:10.7]} 24... Qh5 {[%clk 0:04:58.9]} 25. Nxg4
{[%clk 0:06:08.8]} 25... Nxg4 {[%clk 0:04:58.6]} 26. Bxg4 {[%clk 0:06:00.6]}
26... Qxg4 {[%clk 0:05:00.5]} 27. Qxg4 {[%clk 0:05:30.1]} 27... Rxg4 {[%clk
0:05:02.4]} 28. Rfd1 {[%clk 0:05:31.4]} 28... Rhg8 {[%clk 0:04:57.2]} 29. g3
{[%clk 0:05:30.3]} 29... h5 {[%clk 0:03:12.1]} 30. Kf1 {[%clk 0:05:28.5]} 30...
h4 {[%clk 0:03:08.2]} 31. gxh4 {[%clk 0:05:24.3]} 31... Rxh4 {[%clk 0:03:10.1]}
32. Ke2 {[%clk 0:05:20.8]} 32... Rh5 {[%clk 0:02:57.1]} 33. Rc5 {[%clk
0:03:29.8]} 33... Rd8 {[%clk 0:02:49.2]} 34. Rd4 {[%clk 0:03:25]} 34... b6
{[%clk 0:02:12]} 35. Rc7 {[%clk 0:03:25.5]} 35... Kb8 {[%clk 0:02:08.3]} 36. Rf7
{[%clk 0:03:23.2]} 36... Rc8 {[%clk 0:02:02.1]} 37. Rd7 {[%clk 0:03:07.7]} 37...
Rc2+ {[%clk 0:01:25.6]} 38. Rd2 {[%clk 0:03:08.4]} 38... Rxd2+ {[%clk
0:01:10.2]} 39. Kxd2 {[%clk 0:03:10.3]} 39... a5 {[%clk 0:01:10.9]} 40. Kd3
{[%clk 0:03:06.1]} 40... Kc8 {[%clk 0:01:11]} 41. Rf7 {[%clk 0:03:06.9]} 41...
Rh1 {[%clk 0:01:08]} 42. Kd4 {[%clk 0:02:29.8]} 42... Rd1+ {[%clk 0:01:00.3]}
43. Ke5 {[%clk 0:02:29.8]} 43... Rd2 {[%clk 0:00:56.7]} 44. Kd6 {[%clk
0:02:13.8]} 44... Rxa2 {[%clk 0:00:56.1]} 45. Kc6 {[%clk 0:02:07.5]} 45... Rc2+
{[%clk 0:00:46]} 46. Kxb6 {[%clk 0:02:07.5]} 46... Rc3 {[%clk 0:00:41.2]} 47.
Kxa5 {[%clk 0:01:14.9]} 47... Rxb3 {[%clk 0:00:41.4]} 48. Rf5 {[%clk 0:01:15.9]}
48... Rb2 {[%clk 0:00:39.8]} 49. Ka4 {[%clk 0:01:04]} 49... Kd7 {[%clk
0:00:35.9]} 50. Ka3 {[%clk 0:01:04.8]} 50... Rd2 {[%clk 0:00:35.2]} 51. Kb3
{[%clk 0:01:01.5]} 51... Ke6 {[%clk 0:00:35.3]} 52. Rf8 {[%clk 0:01:00.4]} 52...
d4 {[%clk 0:00:18.2]} 53. e4 {[%clk 0:00:49.1]} 53... Ke5 {[%clk 0:00:18]} 54.
f3 {[%clk 0:00:50.2]} 54... Rd3+ {[%clk 0:00:14.2]} 55. Kb4 {[%clk 0:00:48.7]}
55... Re3 {[%clk 0:00:12.4]} 56. Rf5+ {[%clk 0:00:48.9]} 56... Ke6 {[%clk
0:00:11]} 57. Kc4 {[%clk 0:00:50.2]} 57... d3 {[%clk 0:00:11.6]} 58. Kc3 {[%clk
0:00:51.5]} 58... Ke7 {[%clk 0:00:08.4]} 59. Kd2 {[%clk 0:00:52.2]} 59... Re2+
{[%clk 0:00:08.8]} 60. Kxd3 {[%clk 0:00:53.5]} 60... Ra2 {[%clk 0:00:09.7]} 61.
Ke3 {[%clk 0:00:54.2]} 61... Ra3+ {[%clk 0:00:10.9]} 62. Kf4 {[%clk 0:00:55.5]}
62... Ke6 {[%clk 0:00:12.8]} 63. Rb5 {[%clk 0:00:55.6]} 63... Ra4 {[%clk
0:00:12.5]} 64. Rb6+ {[%clk 0:00:56.6]} 64... Ke7 {[%clk 0:00:13.9]} 65. Kf5
{[%clk 0:00:57.6]} 65... Ra3 {[%clk 0:00:13.5]} 66. f4 {[%clk 0:00:58.6]} 66...
Rh3 {[%clk 0:00:14.1]} 67. e5 {[%clk 0:00:59.7]} 67... Rh5+ {[%clk 0:00:14.2]}
68. Ke4 {[%clk 0:00:59.5]} 68... Rh1 {[%clk 0:00:15.4]} 69. Rb7+ {[%clk
0:00:59.6]} 69... Ke8 {[%clk 0:00:15.6]} 70. f5 {[%clk 0:00:56.5]} 70... Re1+
{[%clk 0:00:14.3]} 71. Kd5 {[%clk 0:00:57.5]} 71... Ra1 {[%clk 0:00:15.2]} 72.
e6 {[%clk 0:00:55.1]} 72... Ra5+ {[%clk 0:00:15]} 73. Kd6 {[%clk 0:00:55.6]}
73... Kf8 {[%clk 0:00:08.2]} 74. Rb8+ {[%clk 0:00:50.3]} 74... Kg7 {[%clk
0:00:09]} 75. e7 {[%clk 0:00:50.6]} 1-0

[Event "GrandPrix_29.05"]
[Site "Chess.com"]
[Date "2020.05.29"]
[Round "6"]
[White "KacperKacprzak"]
[Black "Poghosyan_Suren"]
[Result "1-0"]
[WhiteElo "2053"]
[BlackElo "2071"]
[TimeControl "600+2"]
[EndTime "12:04:39 PDT"]
[Termination "KacperKacprzak won by checkmate"]

1. e4 {[%clk 0:10:01.9]} 1... e6 {[%clk 0:10:00.1]} 2. d4 {[%clk 0:10:00.2]}
2... d5 {[%clk 0:10:00.2]} 3. Nc3 {[%clk 0:10:00.8]} 3... Bb4 {[%clk 0:10:00.2]}
4. e5 {[%clk 0:10:00.8]} 4... c5 {[%clk 0:09:52.7]} 5. a3 {[%clk 0:10:01]} 5...
Bxc3+ {[%clk 0:09:49.4]} 6. bxc3 {[%clk 0:10:02.9]} 6... Qc7 {[%clk 0:09:51]} 7.
Qg4 {[%clk 0:09:58]} 7... f6 {[%clk 0:09:50.5]} 8. exf6 {[%clk 0:09:35.4]} 8...
Nxf6 {[%clk 0:09:50.2]} 9. Qg3 {[%clk 0:09:36.9]} 9... Qxg3 {[%clk 0:09:44.7]}
10. hxg3 {[%clk 0:09:38.8]} 10... Nc6 {[%clk 0:09:45.8]} 11. Nf3 {[%clk
0:09:37.5]} 11... cxd4 {[%clk 0:09:42.1]} 12. cxd4 {[%clk 0:09:39.4]} 12... Bd7
{[%clk 0:09:43.6]} 13. Bd3 {[%clk 0:09:38.3]} 13... Rc8 {[%clk 0:09:42.9]} 14.
Rb1 {[%clk 0:08:57.6]} 14... b6 {[%clk 0:09:41]} 15. Bf4 {[%clk 0:08:47.5]}
15... O-O {[%clk 0:09:30.6]} 16. Kd2 {[%clk 0:08:19]} 16... h6 {[%clk
0:09:23.6]} 17. Bd6 {[%clk 0:08:08.8]} 17... Rfe8 {[%clk 0:09:13.8]} 18. Rh4
{[%clk 0:07:46.7]} 18... Ne7 {[%clk 0:08:32.7]} 19. g4 {[%clk 0:06:58.8]} 19...
Ba4 {[%clk 0:07:43]} 20. g5 {[%clk 0:06:48.6]} 20... hxg5 {[%clk 0:07:42.6]} 21.
Nxg5 {[%clk 0:06:50.5]} 21... Nf5 {[%clk 0:07:43.8]} 22. Bxf5 {[%clk 0:05:20.6]}
22... exf5 {[%clk 0:07:45.7]} 23. c3 {[%clk 0:05:22.1]} 23... Ne4+ {[%clk
0:07:10.4]} 24. Nxe4 {[%clk 0:05:20.7]} 24... Rxe4 {[%clk 0:07:09.4]} 25. Rh5
{[%clk 0:04:42.9]} 25... Bd7 {[%clk 0:05:43.3]} 26. Be5 {[%clk 0:04:31.8]} 26...
Rg4 {[%clk 0:05:39.3]} 27. g3 {[%clk 0:04:16.9]} 27... Kf7 {[%clk 0:05:37.6]}
28. f3 {[%clk 0:04:10.9]} 28... Rg6 {[%clk 0:05:35.4]} 29. Rbh1 {[%clk
0:04:11.4]} 29... Rgc6 {[%clk 0:05:16.3]} 30. Rh7 {[%clk 0:03:52]} 30... Rg6
{[%clk 0:05:10.9]} 31. Rh8 {[%clk 0:03:48.2]} 31... Rg8 {[%clk 0:05:08.1]} 32.
Ke3 {[%clk 0:03:40.4]} 32... Rc6 {[%clk 0:05:00.6]} 33. Kd2 {[%clk 0:03:38]}
33... Rg6 {[%clk 0:04:58.2]} 34. R1h7 {[%clk 0:03:23.1]} 34... Bb5 {[%clk
0:04:43.9]} 35. Rh4 {[%clk 0:02:33.8]} 35... Bd7 {[%clk 0:04:29.6]} 36. Bb8
{[%clk 0:02:18]} 36... b5 {[%clk 0:04:21.8]} 37. Be5 {[%clk 0:02:09.1]} 37...
Ra6 {[%clk 0:04:17.7]} 38. Rxg8 {[%clk 0:01:58.2]} 38... Kxg8 {[%clk 0:04:17.3]}
39. Rh5 {[%clk 0:01:59.3]} 39... Bc8 {[%clk 0:02:57.2]} 40. g4 {[%clk
0:01:24.8]} 40... fxg4 {[%clk 0:02:44.1]} 41. fxg4 {[%clk 0:01:26.7]} 41... Rg6
{[%clk 0:02:44.4]} 42. Bb8 {[%clk 0:01:20.4]} 42... Be6 {[%clk 0:02:27.5]} 43.
Re5 {[%clk 0:01:11.6]} 43... Kf7 {[%clk 0:02:26.9]} 44. g5 {[%clk 0:01:11.3]}
44... a6 {[%clk 0:02:27.1]} 45. Ke3 {[%clk 0:01:05.3]} 45... Ke8 {[%clk
0:02:26.4]} 46. Kf4 {[%clk 0:01:04.8]} 46... Kd7 {[%clk 0:02:27.3]} 47. Ba7
{[%clk 0:00:57.1]} 47... Kc6 {[%clk 0:02:10.5]} 48. Bc5 {[%clk 0:00:57.1]} 48...
a5 {[%clk 0:02:11.1]} 49. Re1 {[%clk 0:00:56.4]} 49... Kd7 {[%clk 0:02:03.1]}
50. Rb1 {[%clk 0:00:55.9]} 50... Kc6 {[%clk 0:02:02.3]} 51. a4 {[%clk
0:00:32.4]} 51... bxa4 {[%clk 0:01:51.6]} 52. Rb6+ {[%clk 0:00:32.3]} 52... Kc7
{[%clk 0:01:45.3]} 53. Ra6 {[%clk 0:00:34.2]} 53... Bf7 {[%clk 0:01:45.9]} 54.
Ra7+ {[%clk 0:00:26.4]} 54... Kc6 {[%clk 0:00:57.4]} 55. Rxf7 {[%clk 0:00:26.8]}
55... Kb5 {[%clk 0:00:58.4]} 56. Kf5 {[%clk 0:00:20.5]} 56... Rc6 {[%clk
0:00:52.6]} 57. Rxg7 {[%clk 0:00:18.9]} 57... Kc4 {[%clk 0:00:53.2]} 58. Ra7
{[%clk 0:00:17.8]} 58... Kxc3 {[%clk 0:00:29.2]} 59. Rxa5 {[%clk 0:00:15.2]}
59... Kb3 {[%clk 0:00:31.1]} 60. g6 {[%clk 0:00:14.4]} 60... Rc7 {[%clk
0:00:25.5]} 61. Ra6 {[%clk 0:00:10.6]} 61... Rxc5 {[%clk 0:00:09.3]} 62. dxc5
{[%clk 0:00:12.5]} 62... d4 {[%clk 0:00:11.2]} 63. g7 {[%clk 0:00:12.8]} 63...
d3 {[%clk 0:00:12.6]} 64. g8=Q+ {[%clk 0:00:14.5]} 64... Kb2 {[%clk 0:00:13.6]}
65. Rxa4 {[%clk 0:00:13.8]} 65... d2 {[%clk 0:00:13.4]} 66. Qa2+ {[%clk
0:00:14.2]} 66... Kc1 {[%clk 0:00:08.9]} 67. Rc4+ {[%clk 0:00:14.8]} 67... Kd1
{[%clk 0:00:09.7]} 68. Qc2+ {[%clk 0:00:16.2]} 68... Ke2 {[%clk 0:00:11.6]} 69.
Re4+ {[%clk 0:00:17.2]} 69... Kf3 {[%clk 0:00:11.7]} 70. Qd1+ {[%clk 0:00:17.3]}
70... Kf2 {[%clk 0:00:13.6]} 71. Qxd2+ {[%clk 0:00:18.5]} 71... Kf3 {[%clk
0:00:14.6]} 72. Qd3+ {[%clk 0:00:19.3]} 72... Kf2 {[%clk 0:00:15.5]} 73. Re2+
{[%clk 0:00:21.2]} 73... Kf1 {[%clk 0:00:12.2]} 74. Qd1# {[%clk 0:00:23.1]} 1-0